[Event "BL 2016-17"]
[Site "Berlin"]
[Date "2017.05.01"]
[Round "15"]
[White "Seger, Ruediger"]
[Black "Meister, Peter"]
[Result "0-1"]
[ECO "B06"]
[WhiteElo "2351"]
[BlackElo "2371"]
[Annotator "NA"]
[PlyCount "90"]
[EventDate "2017.??.??"]
[EventType "team-tourn"]
[EventCountry "GER"]
[SourceTitle "playchess.com"]
[Source "ChessBase"]
[SourceQuality "1"]
[WhiteTeam "SG Trier"]
[BlackTeam "Bayern München"]
[TimeControl "40/6000+30:3000+30"]

{[%evp 16,86,66,32767,18,18,12,2,0,0,0,-8,16,24,22,31,49,1,32767,-23,-33,-48,32767,-57,32767,32767,-68,32767,-56,-96,32767,-104,-95,32767,32767,32767,32767,-68,-67,32767,32767,32767,-192,-198,-162,-162,-157,-147,-147,-134,32767,32767,32767,32767,32767,32767,32767,32767,32767,32767,32767,32767,32767,32767,32767,-203,32767,-155,-164,-206,-210,32767,-124]} 1. e4 {[%emt 0:00:00]} g6 {[%emt 0:00:20]} 2. d4 {[%emt 0:00:00]} Bg7 {[%emt 0:00:04]} 3. Nf3 {[%emt 0:00:00]} d6 {[%emt 0:00:31]} 4. c3 {[%emt 0:01:11]} Nf6 {[%emt 0:01:52]} 5. Bd3 {[%emt 0:00:13]} O-O {[%emt 0:00:08]} 6. O-O {[%emt 0:00:05]} Nc6 {[%emt 0:01:14]} 7. Re1 {[%emt 0:01:09]} e5 {[%emt 0:01:39]} 8. h3 {[%emt 0:02:18]} h6 {[%emt 0:05:17]} 9. dxe5 {[%emt 0:05:18] B07: Pirc Defence: Miscellaneous Systems} (9. Nbd2 Nh5 10. dxe5 dxe5 11. Bf1 Qe7 12. Nc4 Be6 13. b3 Rfd8 14. Qc2 Nf4 15. a4 a5 16. Ba3 Qf6 {½-½ (57) Kamsky,G (2721)-Nepomniachtchi,I (2721) Beijing 2013}) 9... dxe5 {[%emt 0:04:16]} 10. Qc2 {[%emt 0:04:07]} Nh5 {[%emt 0:09:47]} 11. a4 $146 {[%emt 0:05:03]} (11. Bf1 Qf6 12. Nh2 Nf4 13. Na3 Be6 14. Nc4 h5 15. Bxf4 exf4 16. a4 {0-1 (34) Manievich,V-Kagan,S (2430) Israel 1976}) 11... Qf6 {[%emt 0:12:11]} 12. Nbd2 {[%emt 0:00:36]} Nf4 {[%emt 0:01:38]} 13. Bf1 {[%emt 0:00:09]} g5 {[%emt 0:02:59]} 14. Nh2 {[%emt 0:02:13]} h5 {[%emt 0:05:19]} 15. Nc4 {[%emt 0:00:18]} Qg6 {[%emt 0:13:21]} 16. b3 {[%emt 0:06:25]} f5 {[%emt 0:13:25]} 17. Bxf4 {[%emt 0:11:05]} exf4 {[%emt 0:01:01]} ({Inferior is} 17... gxf4 18. Bd3 $16) 18. Bd3 {[%emt 0:00:12]} g4 {[%emt 0:10:43]} 19. exf5 {[%emt 0:00:20]} Bxf5 {[%emt 0:00:06]} 20. Bxf5 {[%emt 0:00:12]} Rxf5 {[%emt 0:08:42]} ({Much weaker is} 20... Qxf5 21. Qxf5 Rxf5 22. hxg4 hxg4 23. Rac1 $11 (23. Nxg4 $2 Rg5 24. f3 Bxc3 $19)) 21. Kh1 {[%emt 0:04:44]} Raf8 {[%emt 0:01:32]} 22. Rac1 {[%emt 0:02:48]} Qf6 {[%emt 0:05:05]} 23. Qe2 {[%emt 0:06:58] [#]} ({Of course not} 23. hxg4 hxg4 24. Qe2 f3 25. Qe6+ Qxe6 26. Rxe6 fxg2+ 27. Kxg2 Rxf2+ 28. Kg1 R2f4 $17) (23. Rcd1 $15) 23... Qh4 $1 {[%emt 0:04:25]} 24. Qf1 {[%emt 0:06:00]} gxh3 {[%emt 0:02:43]} 25. gxh3 {[%emt 0:00:28]} f3 {[%emt 0:00:04]} 26. Nd2 {[%emt 0:01:45]} Ne5 {[%emt 0:00:21]} 27. Re4 {[%emt 0:00:31]} Qg5 {[%emt 0:00:33]} 28. Nc4 {[%emt 0:00:52] [#]} Nd3 $1 {[%emt 0:01:27]} 29. Rc2 {[%emt 0:01:50]} Qg2+ {[%emt 0:02:50]} 30. Qxg2 {[%emt 0:00:08]} fxg2+ {[%emt 0:00:02]} 31. Kxg2 {[%emt 0:00:22]} Rxf2+ {[%emt 0:00:03]} 32. Rxf2 {[%emt 0:00:10]} Rxf2+ {[%emt 0:00:09]} 33. Kg3 {[%emt 0:05:16]} Rc2 {[%emt 0:00:04]} 34. Nf3 {[%emt 0:05:46]} Rxc3 {[%emt 0:00:16]} 35. Ncd2 {[%emt 0:00:20]} Ne5 {[%emt 0:02:47]} 36. b4 {[%emt 0:00:23]} Kf7 {[%emt 0:00:38]} 37. Kf4 {[%emt 0:17:52]} Nxf3 {[%emt 0:00:07]} 38. Nxf3 {[%emt 0:00:03]} Kf6 {[%emt 0:00:18]} 39. h4 {[%emt 0:01:36]} Bf8 {[%emt 0:00:24]} 40. Rd4 {[%emt 0:00:51]} Bh6+ {[%emt 0:51:29]} 41. Kg3 {[%emt 0:51:55]} a6 {[%emt 0:00:00]} 42. b5 {[%emt 0:00:00]} axb5 {[%emt 0:00:00]} 43. axb5 {[%emt 0:00:00]} Be3 $17 {[%emt 0:00:00]} (43... Bf8) (43... b6 $19 44. Rd8 Rc4) 44. Re4 {[%emt 0:00:00]} Rb3 {[%emt 0:00:00]} 45. Re8 {[%emt 0:00:00]} Bc5 {[%emt 0:00:00]} 0-1

[Event "BL 2016-17"]
[Site "Berlin"]
[Date "2017.05.01"]
[Round "15"]
[White "Capone, Nicola"]
[Black "Lammers, Markus"]
[Result "0-1"]
[ECO "B01"]
[WhiteElo "2349"]
[BlackElo "2309"]
[Annotator "NA"]
[PlyCount "83"]
[EventDate "2017.??.??"]
[EventType "team-tourn"]
[EventCountry "GER"]
[SourceTitle "playchess.com"]
[Source "ChessBase"]
[SourceQuality "1"]
[WhiteTeam "Aufwärts Aachen"]
[BlackTeam "Zugzwang München"]
[TimeControl "40/6000+30:3000+30"]

{[%evp 8,83,43,54,32767,32767,32767,32767,32767,32767,32767,26,23,32767,1,12,22,33,20,29,33,10,17,32767,20,32767,19,17,49,45,99,67,73,78,41,53,57,63,59,32767,32767,32767,39,32767,32767,36,32767,32767,54,52,101,32767,32767,43,107,32767,98,32767,32767,55,32767,47,32767,32767,32767,32767,32767,32767,-402,32767,32767,32767,32767,32767,32767,32767,-556,-1063]} 1. e4 {[%emt 0:00:00]} d5 {[%emt 0:00:26]} 2. exd5 {[%emt 0:00:00]} Nf6 {[%emt 0:00:07]} 3. Bb5+ {[%emt 0:00:07]} Bd7 {[%emt 0:00:09]} 4. Bc4 {[%emt 0:00:04]} Bg4 {[%emt 0:00:26]} 5. f3 {[%emt 0:00:05] LiveBook: 134 Games} Bf5 {[%emt 0:00:30]} 6. Nc3 {[%emt 0:01:32]} Nbd7 {[%emt 0:00:07]} 7. d4 {[%emt 0:07:36]} Nb6 {[%emt 0:00:21]} 8. Bb3 {[%emt 0:00:03] B01: Scandinavian Defence} (8. Bb5+ Bd7 9. Bd3 Nbxd5 10. Nxd5 Nxd5 11. Ne2 c5 12. Be4 e6 13. O-O Bd6 14. Bxd5 exd5 15. Bf4 Be7 {½-½ (23) Germann,J (2129)-Corbat,P (2450) ICCF email 2008}) 8... a5 {[%emt 0:00:42]} 9. a3 {[%emt 0:03:09]} a4 {[%emt 0:02:36]} 10. Ba2 {[%emt 0:00:32]} Nbxd5 {[%emt 0:01:09]} 11. Nxd5 {[%emt 0:05:32]} Nxd5 {[%emt 0:00:08]} 12. Ne2 {[%emt 0:00:04]} e6 {[%emt 0:02:06]} 13. c4 $146 {[%emt 0:09:12]} (13. Ng3 Bg6 14. O-O Bd6 15. Qe1 O-O {1-0 (39) Valla,T (1790)-Puobis,J (1949) Slovakia 2010}) 13... Nf6 {[%emt 0:01:14]} 14. Be3 {[%emt 0:10:40]} h5 {[%emt 0:11:10]} 15. Nc3 {[%emt 0:12:31]} Qd7 {[%emt 0:03:15]} 16. Qe2 {[%emt 0:00:14]} Be7 {[%emt 0:02:56]} 17. Rd1 {[%emt 0:00:30]} h4 {[%emt 0:04:00]} 18. O-O {[%emt 0:02:01]} h3 {[%emt 0:07:21]} 19. g3 {[%emt 0:00:06]} O-O {[%emt 0:01:27]} 20. Rfe1 {[%emt 0:04:01]} Rfe8 {[%emt 0:06:33]} 21. Rd2 {[%emt 0:00:12]} c6 {[%emt 0:02:33]} 22. Qf1 {[%emt 0:02:45]} Qc7 {[%emt 0:07:20]} 23. g4 {[%emt 0:08:38]} Bg6 {[%emt 0:01:21]} 24. Qxh3 {[%emt 0:00:04]} Qa5 {[%emt 0:02:20]} 25. Ne2 {[%emt 0:05:08]} e5 {[%emt 0:03:57]} 26. Red1 {[%emt 0:02:55]} exd4 {[%emt 0:02:31]} 27. Bxd4 {[%emt 0:00:35]} Bc5 {[%emt 0:01:03]} 28. Qg2 {[%emt 0:05:07]} Re3 {[%emt 0:13:39]} (28... Rad8 $11) 29. Qf2 {[%emt 0:01:03]} Rae8 {[%emt 0:00:55]} 30. Bxc5 {[%emt 0:08:08]} (30. Nc3 $16) 30... Qxc5 {[%emt 0:00:28]} 31. Rd8 {[%emt 0:00:26]} Qg5 {[%emt 0:03:43]} 32. h3 {[%emt 0:11:27]} Qe5 {[%emt 0:03:23]} 33. Rxe8+ {[%emt 0:05:57]} (33. Nc3 $16) 33... Nxe8 {[%emt 0:05:09]} 34. f4 {[%emt 0:01:11]} Qe7 {[%emt 0:01:37]} 35. Ng3 {[%emt 0:00:25]} Bd3 {[%emt 0:00:37]} 36. c5 {[%emt 0:02:48]} Qxc5 {[%emt 0:02:10]} 37. Rxd3 {[%emt 0:01:40]} Qc1+ {[%emt 0:00:42]} 38. Nf1 {[%emt 0:00:01]} Rxd3 {[%emt 0:00:31]} 39. Qe2 {[%emt 0:00:02]} Qc5+ {[%emt 0:01:19]} 40. Kh2 {[%emt 0:00:01]} Rd8 {[%emt 0:50:47]} 41. Ng3 {[%emt 0:05:41]} Qd6 {[%emt 0:00:00]} 42. g5 $19 {[%emt 0:04:36]} 0-1

[Event "BL 2016-17"]
[Site "Berlin"]
[Date "2017.05.01"]
[Round "15"]
[White "Grigorian, Spartak"]
[Black "Dimitrijeski, Boris"]
[Result "1/2-1/2"]
[ECO "D15"]
[WhiteElo "2338"]
[BlackElo "2293"]
[Annotator "NA"]
[PlyCount "48"]
[EventDate "2017.??.??"]
[EventType "team-tourn"]
[EventCountry "GER"]
[SourceTitle "playchess.com"]
[Source "ChessBase"]
[SourceQuality "1"]
[WhiteTeam "Werder Bremen"]
[BlackTeam "König Tegel"]
[TimeControl "40/6000+30:3000+30"]

{[%evp 17,47,0,0,-84,-41,-36,-43,-45,-24,-30,-35,-60,-58,-56,32767,32767,32767,32767,-50,-54,-33,32767,32767,32767,-33,32767,32767,-33,-16,-22,32767,-11]} 1. d4 {[%emt 0:00:00]} d5 {[%emt 0:00:11]} 2. c4 {[%emt 0:00:00]} c6 {[%emt 0:00:09]} 3. Nc3 {[%emt 0:00:30]} Nf6 {[%emt 0:00:14]} 4. Nf3 {[%emt 0:00:06]} a6 {[%emt 0:00:25]} 5. e3 {[%emt 0:01:48]} Bf5 {[%emt 0:00:38]} 6. Qb3 {[%emt 0:04:56]} b5 {[%emt 0:01:02] D15: Slav Defence: 4 Nc3 a6 and gambit lines after 4 Nc3 dxc4} (6... Ra7 7. Nh4 Bc8 8. a4 e6 9. a5 c5 10. Nf3 Nc6 11. cxd5 exd5 12. Qb6 Ra8 13. dxc5 Qxb6 14. cxb6 {0-1 (65) Riazantsev,A (2671)-Carlsen,M (2840) Doha 2016}) 7. cxd5 {[%emt 0:01:14]} cxd5 {[%emt 0:00:06]} 8. a4 {[%emt 0:00:53]} b4 {[%emt 0:03:27]} 9. Na2 {[%emt 0:09:45]} e6 {[%emt 0:12:13]} 10. Bd3 $146 {[%emt 0:27:01]} ({Don't go for} 10. Nxb4 $2 Qb6 11. Bd2 Nc6 $19) (10. Bd2 $11 {remains equal.} a5 11. Bb5+ Nbd7 12. Ne5 Bd6 13. Nc6 Qb6 14. Naxb4 {1-0 (49) Kazhgaleyev,M (2641)-Megaranto,S (2532) Manila 2008}) 10... Bxd3 {[%emt 0:02:37]} 11. Qxd3 {[%emt 0:00:38]} Nc6 {[%emt 0:05:39]} 12. O-O {[%emt 0:03:14]} Bd6 {[%emt 0:02:12]} 13. Bd2 {[%emt 0:00:50]} O-O {[%emt 0:03:31]} 14. Rfc1 {[%emt 0:07:27]} Qb6 {[%emt 0:04:42]} 15. b3 {[%emt 0:00:44]} Rfc8 16. Rc2 {[%emt 0:00:30]} Ne7 17. Rac1 {[%emt 0:00:30]} Rxc2 18. Rxc2 {[%emt 0:00:30]} Rc8 {[%emt 0:32:33]} 19. Rxc8+ Nxc8 20. Be1 {[%emt 0:13:37]} Ne7 {[%emt 0:02:39]} 21. Qc2 {[%emt 0:06:33]} Ne4 {[%emt 0:06:02]} 22. Nd2 {[%emt 0:01:48]} Nxd2 {[%emt 0:01:43]} 23. Qxd2 {[%emt 0:02:26]} Nc6 {[%emt 0:00:44]} 24. f3 $11 {[%emt 0:01:36]} h6 {[%emt 0:05:10]} 1/2-1/2

[Event "BL 2016-17"]
[Site "Berlin"]
[Date "2017.05.01"]
[Round "15"]
[White "Eichler, Christoph"]
[Black "Braun, Christian"]
[Result "1/2-1/2"]
[ECO "E62"]
[WhiteElo "2304"]
[BlackElo "2356"]
[Annotator "NA"]
[PlyCount "68"]
[EventDate "2017.??.??"]
[EventType "team-tourn"]
[EventCountry "GER"]
[SourceTitle "playchess.com"]
[Source "ChessBase"]
[SourceQuality "1"]
[WhiteTeam "Zugzwang München"]
[BlackTeam "Aufwärts Aachen"]
[TimeControl "40/6000+30:3000+30"]

{[%evp 8,65,22,23,20,32767,32767,32767,32767,32767,32767,32767,32767,32767,119,98,110,74,114,100,114,98,85,1,0,0,1,-36,-39,-22,-31,-12,32767,-38,32767,32767,-9,-29,32767,-24,-23,32767,32767,-39,-38,-52,-49,-41,32767,32767,-26,-34,-27,32767,32767,32767,32767,-21,32767,-25]} 1. Nf3 {[%emt 0:00:00]} Nf6 {[%emt 0:00:06]} 2. g3 {[%emt 0:00:00]} g6 {[%emt 0:00:10]} 3. Bg2 {[%emt 0:00:00]} Bg7 {[%emt 0:00:06]} 4. O-O {[%emt 0:00:00]} O-O {[%emt 0:00:06] LiveBook: 4780 Games} 5. c4 {[%emt 0:00:19]} c6 {[%emt 0:00:06]} 6. d4 {[%emt 0:00:48]} d6 {[%emt 0:00:07]} 7. Nc3 {[%emt 0:00:18]} Qa5 {[%emt 0:00:06]} 8. e4 {[%emt 0:00:43]} Be6 {[%emt 0:00:07]} 9. Qb3 $146 {[%emt 0:06:17] E62: King's Indian: Fianchetto: 6...c6 and Panno Variation (6...Nc6) without ...a6} (9. d5 Bg4 10. Bd2 Nfd7 11. Qc2 Bxf3 12. Bxf3 Qc7 13. Rac1 a5 14. a3 Na6 15. Be2 Nac5 16. Be3 Rfe8 17. Rcd1 Qb6 18. Na4 Qb3 19. Qxb3 Nxb3 20. Bg4 Ne5 21. Be2 Nd7 22. Bg4 Ne5 {½-½ (22) Vignesh,N (2399)-Azaladze,S (2499) Mumbai 2015}) 9... b5 {[%emt 0:11:44]} 10. d5 {[%emt 0:01:41]} Bd7 {[%emt 0:14:28]} (10... Bg4 $14) 11. cxb5 {[%emt 0:07:28]} cxb5 {[%emt 0:01:13] [#]} 12. e5 $1 {[%emt 0:09:56]} Ng4 {[%emt 0:03:24] [#]} 13. exd6 $1 {[%emt 0:02:57]} exd6 {[%emt 0:00:09]} 14. Ne4 {[%emt 0:06:45]} Na6 {[%emt 0:05:25]} 15. Bd2 {[%emt 0:08:43]} (15. Nxd6 $16 {With the idea h3.} Qb6 16. Bf4) 15... Qb6 {[%emt 0:03:26]} 16. h3 {[%emt 0:02:53]} Rfe8 {[%emt 0:09:52]} 17. Rae1 {[%emt 0:05:18]} (17. Nxd6 $11 Qxd6 18. hxg4) 17... Rxe4 {[%emt 0:04:25]} 18. Rxe4 {[%emt 0:08:52]} Nc5 $1 {[%emt 0:00:48]} 19. Qc2 {[%emt 0:03:39]} Nxe4 {[%emt 0:12:26]} 20. Qxe4 {[%emt 0:00:54]} Nf6 {[%emt 0:01:52]} 21. Qd4 {[%emt 0:08:20]} Rc8 {[%emt 0:02:51]} 22. Be3 {[%emt 0:02:27]} Qb7 {[%emt 0:08:03]} 23. Qxa7 {[%emt 0:01:41]} Qxa7 {[%emt 0:00:37]} ({Much worse is} 23... Qxd5 24. Nd4 Qe5 25. Qb7 $14) 24. Bxa7 {[%emt 0:01:31]} Ra8 {[%emt 0:00:07]} 25. Bd4 {[%emt 0:00:49]} Rxa2 {[%emt 0:00:59]} 26. Rd1 {[%emt 0:01:40]} Ne4 {[%emt 0:02:01]} 27. Bxg7 {[%emt 0:03:24]} Kxg7 {[%emt 0:00:57]} 28. Nd4 {[%emt 0:00:36]} Nc5 {[%emt 0:00:51]} 29. b4 {[%emt 0:01:34]} Na6 {[%emt 0:03:43]} 30. Nc6 {[%emt 0:03:39]} Rb2 {[%emt 0:03:48]} 31. Ra1 {[%emt 0:05:04]} Nxb4 {[%emt 0:01:26]} 32. Nxb4 {[%emt 0:00:18]} Rxb4 {[%emt 0:00:06]} 33. Ra6 $11 {[%emt 0:00:09]} Bf5 {[%emt 0:10:06]} 34. Rxd6 {[%emt 0:00:31]} Be4 {[%emt 0:01:00]} 1/2-1/2

[Event "BL 2016-17"]
[Site "Berlin"]
[Date "2017.05.01"]
[Round "15"]
[White "Spitzl, Vinzent"]
[Black "Zeller, Frank"]
[Result "1-0"]
[ECO "C72"]
[WhiteElo "2280"]
[BlackElo "2390"]
[Annotator "ChessBase"]
[PlyCount "65"]
[EventDate "2017.??.??"]
[EventType "team-tourn"]
[EventCountry "GER"]
[SourceTitle "playchess.com"]
[Source "ChessBase"]
[SourceQuality "1"]
[WhiteTeam "Griesheim"]
[BlackTeam "Schwäbisch Hall"]
[TimeControl "40/6000+30:3000+30"]

1. e4 {[%emt 0:00:00]} e5 {[%emt 0:00:13]} 2. Nf3 {[%emt 0:00:00]} Nc6 {[%emt 0:00:07]} 3. Bb5 {[%emt 0:00:00]} a6 {[%emt 0:00:17]} 4. Ba4 {[%emt 0:00:00]} d6 {[%emt 0:00:18]} 5. O-O {[%emt 0:01:11]} Bg4 {[%emt 0:00:23]} 6. h3 {[%emt 0:01:35]} h5 {[%emt 0:00:32]} 7. Bxc6+ {[%emt 0:01:46]} bxc6 {[%emt 0:01:24]} 8. d4 {[%emt 0:00:56]} Qf6 {[%emt 0:00:52]} 9. Nbd2 {[%emt 0:00:30]} g5 {[%emt 0:01:46]} 10. dxe5 {[%emt 0:00:28]} dxe5 {[%emt 0:00:13]} 11. Nc4 {[%emt 0:00:43]} Bxf3 {[%emt 0:01:00]} 12. Qxf3 {[%emt 0:00:53]} Qxf3 {[%emt 0:00:18]} 13. gxf3 {[%emt 0:00:09]} f6 {[%emt 0:00:08]} 14. Be3 {[%emt 0:00:41]} O-O-O {[%emt 0:02:43]} 15. Na5 {[%emt 0:03:26]} Ne7 {[%emt 0:33:42]} 16. Rfd1 {[%emt 0:03:47]} Rd6 {[%emt 0:14:59]} 17. Kf1 {[%emt 0:05:31]} Re6 {[%emt 0:02:50]} 18. Rd3 {[%emt 0:04:07]} Ng6 {[%emt 0:00:21]} 19. Rc3 {[%emt 0:09:47]} g4 {[%emt 0:08:33]} 20. hxg4 {[%emt 0:00:53]} hxg4 {[%emt 0:00:13]} 21. Ke2 {[%emt 0:00:33]} gxf3+ {[%emt 0:10:26]} 22. Kxf3 {[%emt 0:01:19]} Kd7 {[%emt 0:13:29]} 23. Rd1+ {[%emt 0:04:51]} Bd6 {[%emt 0:00:24]} 24. Rxc6 {[%emt 0:02:28]} Rh3+ {[%emt 0:02:06]} 25. Kg2 {[%emt 0:02:04]} Rh4 {[%emt 0:01:03]} 26. c4 {[%emt 0:01:40]} Ne7 {[%emt 0:05:30]} 27. Rxa6 {[%emt 0:00:57]} f5 {[%emt 0:00:32]} 28. c5 {[%emt 0:07:30]} Rg6+ {[%emt 0:01:31]} 29. Kf3 {[%emt 0:06:24]} Rxe4 {[%emt 0:04:17]} 30. cxd6 {[%emt 0:01:46]} cxd6 {[%emt 0:00:19]} 31. Nb7 {[%emt 0:03:13]} Rb4 {[%emt 0:01:29]} 32. Nxd6 {[%emt 0:02:16]} Kc7 {[%emt 0:02:00]} 33. Ra7+ {[%emt 0:01:00]} 1-0

[Event "BL 2016-17"]
[Site "Berlin"]
[Date "2017.05.01"]
[Round "15"]
[White "Giemsa, Stephan"]
[Black "Koop, Thorben"]
[Result "1-0"]
[ECO "D85"]
[WhiteElo "2256"]
[BlackElo "2398"]
[Annotator "NA"]
[PlyCount "99"]
[EventDate "2017.??.??"]
[EventType "team-tourn"]
[EventCountry "GER"]
[SourceTitle "playchess.com"]
[Source "ChessBase"]
[SourceQuality "1"]
[WhiteTeam "König Tegel"]
[BlackTeam "Werder Bremen"]
[TimeControl "40/6000+30:3000+30"]

1. d4 {[%emt 0:00:00]} Nf6 {[%emt 0:01:05]} 2. c4 {[%emt 0:00:00]} g6 {[%emt 0:01:27]} 3. Nc3 {[%emt 0:00:00]} d5 {[%emt 0:00:20]} 4. cxd5 {[%emt 0:00:03]} Nxd5 {[%emt 0:00:06]} 5. e4 {[%emt 0:00:06]} Nxc3 {[%emt 0:00:21]} 6. bxc3 {[%emt 0:00:07]} Bg7 {[%emt 0:00:52]} 7. Be3 {[%emt 0:00:18]} c5 {[%emt 0:01:58]} 8. Rc1 {[%emt 0:00:14]} Qa5 {[%emt 0:05:06]} 9. Qd2 {[%emt 0:00:50]} cxd4 {[%emt 0:06:44]} 10. cxd4 {[%emt 0:00:16]} Qxd2+ {[%emt 0:00:46]} 11. Bxd2 {[%emt 0:00:10]} O-O {[%emt 0:02:53] D85: Exchange Grünfeld: Unusual White 7th moves and lines with 7 Nf3} 12. Nf3 {[%emt 0:00:18]} e6 {[%emt 0:03:36]} 13. Bb5 {[%emt 0:01:17]} Nc6 {[%emt 0:04:19]} 14. Bxc6 {[%emt 0:02:44]} bxc6 {[%emt 0:00:16]} 15. O-O {[%emt 0:00:35]} Rb8 {[%emt 0:12:47] LiveBook: 3 Games} 16. a3 {[%emt 0:38:09] [#]} Rb2 $146 ({Predecessor:} 16... Ba6 17. Rfe1 Bb5 18. Bb4 Rfd8 19. Bc5 {½-½ (37) Parligras,M (2584)-Ragger,M (2695) Germany 2015}) 17. Bb4 {[%emt 0:00:30]} Rd8 18. Rfe1 {[%emt 0:00:30]} Bb7 19. Bc5 a5 20. Rb1 {[%emt 0:24:07]} Rxb1 {[%emt 0:36:06]} 21. Rxb1 {[%emt 0:00:07]} Ba6 {[%emt 0:00:34]} 22. Rb6 {[%emt 0:13:20]} Bb5 {[%emt 0:06:32]} 23. h4 {[%emt 0:01:57]} h6 {[%emt 0:02:40]} 24. Ne5 {[%emt 0:04:30]} f5 {[%emt 0:13:03]} 25. Nxc6 {[%emt 0:12:55]} Bxc6 {[%emt 0:01:10]} 26. Rxc6 {[%emt 0:00:05]} Bxd4 {[%emt 0:01:27]} 27. Bxd4 {[%emt 0:00:51]} Rxd4 {[%emt 0:00:04]} 28. Rxe6 {[%emt 0:00:16]} Rxe4 {[%emt 0:04:44]} 29. Rxg6+ {[%emt 0:02:08]} Kh7 {[%emt 0:00:04]} 30. h5 {[%emt 0:00:37]} f4 {[%emt 0:01:12]} 31. Rf6 {[%emt 0:01:14]} Re5 {[%emt 0:01:07]} 32. Rf7+ {[%emt 0:01:04]} Kg8 {[%emt 0:00:20]} 33. Rxf4 {[%emt 0:00:07]} Rxh5 {[%emt 0:00:04]} 34. a4 {[%emt 0:01:11]} Kg7 {[%emt 0:02:07]} 35. g3 {[%emt 0:01:20]} Rc5 {[%emt 0:01:08]} 36. Kg2 {[%emt 0:00:57]} Kg6 {[%emt 0:00:41]} 37. Kf3 {[%emt 0:00:50]} Re5 {[%emt 0:01:57]} 38. Rc4 {[%emt 0:01:14]} Kg5 {[%emt 0:00:46]} 39. Rg4+ {[%emt 0:01:22]} Kf5 {[%emt 0:00:26]} 40. Rf4+ $2 {[%emt 0:00:36]} (40. Rd4 $18) 40... Kg6 {[%emt 0:50:30]} 41. Re4 {[%emt 0:52:45]} Rc5 {[%emt 0:01:06]} 42. Re6+ {[%emt 0:00:00]} Kg7 {[%emt 0:00:00]} 43. Ra6 {[%emt 0:00:00]} Rc3+ {[%emt 0:00:00]} 44. Kg2 {[%emt 0:00:00]} Rc5 $1 {[%emt 0:00:00]} 45. Kh3 {[%emt 0:00:00]} Rh5+ {[%emt 0:00:00]} 46. Kg2 $2 {[%emt 0:00:00]} (46. Kg4 $18 Rc5 47. f4) 46... Rc5 {[%emt 0:00:00]} 47. f4 {[%emt 0:00:00]} h5 {[%emt 0:00:00]} 48. Kh3 {[%emt 0:00:00]} Rd5 {[%emt 0:00:00]} 49. Kh4 {[%emt 0:00:00]} Rc5 {[%emt 0:00:00]} 50. Re6 $18 {[%emt 0:00:00]} 1-0